bitfinex/quotes_BTCUSD_20240715
["timestamp","ask_amount","ask_price","bid_price","bid_amount"]
[1721011126371,0.1159801,62509.0,62508.0,0.38026]
[1721011126570,0.16211791,62529.0,62513.0,0.15]
[1721011126750,0.16211791,62529.0,62517.0,0.1]
[1721011126751,0.00997735,62527.0,62517.0,0.1]
[1721011126950,0.3278304,62528.0,62523.0,0.1395]
[1721011126951,0.3409462,62528.0,62523.0,0.1395]
[1721011127176,0.3409462,62528.0,62524.0,0.31988]
[1721011127378,0.42504082,62528.0,62524.0,0.31988]
[1721011127592,0.00997667,62527.0,62524.0,0.31988]
[1721011128003,0.00997667,62527.0,62524.0,0.31388]
[1721011128825,0.5,62525.0,62524.0,0.31388]
[1721011129022,0.50997691,62525.0,62524.0,0.31388]
[1721011129223,0.60997691,62525.0,62524.0,0.31388]
[1721011129589,0.70646961,62525.0,62524.0,0.31388]
[1721011129790,0.6,62525.0,62524.0,0.31388]
[1721011130008,0.6099776,62525.0,62524.0,0.31388]
[1721011131236,0.15134356,62525.0,62524.0,0.31388]
[1721011131450,0.06534356,62525.0,62524.0,0.31388]
[1721011131649,0.65440709,62525.0,62524.0,0.31388]
[1721011131956,0.78252281,62525.0,62524.0,0.31388]
[1721011132268,0.1239776,62525.0,62524.0,0.31388]
[1721011132471,0.6239776,62525.0,62524.0,0.31388]
[1721011132678,0.6239776,62525.0,62524.0,0.2753046]
[1721011132679,0.62397844,62525.0,62524.0,0.2753046]
[1721011132854,1.10376018,62525.0,62524.0,0.2697746]
[1721011132993,1.26587809,62525.0,62524.0,0.2697746]
[1721011133192,1.43447809,62525.0,62524.0,0.2697746]
[1721011133394,1.43447809,62525.0,62524.0,0.20874818]
[1721011133640,1.43447809,62525.0,62524.0,0.16068818]
[1721011133840,1.48300678,62525.0,62524.0,0.16068818]
[1721011134041,1.46900678,62525.0,62524.0,0.16068818]
[1721011134270,1.46594325,62525.0,62524.0,0.16068818]
[1721011134431,1.47994325,62525.0,62524.0,0.16068818]
[1721011134627,1.46594325,62525.0,62524.0,0.16068818]
[1721011135238,2.41927837,62525.0,62524.0,0.01387684]
[1721011135432,0.1686,62523.0,62502.0,0.4863143]
[1721011135636,0.5,62504.0,62503.0,0.31994]
[1721011135806,0.43781189,62504.0,62503.0,0.31994]
[1721011136213,0.93781189,62504.0,62503.0,0.31994]
[1721011136413,0.43781189,62504.0,62503.0,0.31994]
[1721011136579,0.43781189,62504.0,62503.0,0.92161963]
[1721011136580,0.33781189,62504.0,62503.0,0.92161963]
[1721011136777,0.20745714,62524.0,62511.0,0.1415]
[1721011136778,0.16518144,62524.0,62511.0,0.1415]
[1721011137072,0.00997873,62523.0,62513.0,0.1]
[1721011137461,0.00997873,62523.0,62514.0,0.31993]
[1721011137462,0.02397873,62523.0,62514.0,0.31993]
[1721011137670,0.00997873,62522.0,62514.0,0.31993]
[1721011137797,0.3278304,62524.0,62517.0,0.08105238]
[1721011137798,0.00997873,62521.0,62517.0,0.08105238]
[1721011138003,0.3278304,62524.0,62517.0,0.08105238]
[1721011138004,0.00997873,62520.0,62518.0,0.31991]
[1721011138207,0.00997873,62519.0,62518.0,0.31991]
[1721011138411,0.3278304,62524.0,62519.0,0.08857963]
[1721011138649,0.02397749,62523.0,62521.0,0.1413]
[1721011138857,0.00997749,62522.0,62521.0,0.1413]
[1721011139056,0.3278304,62524.0,62522.0,0.31989]
[1721011139270,0.19102971,62523.0,62522.0,0.31989]
[1721011139436,0.15265722,62523.0,62522.0,0.318524]
[1721011140384,0.15265722,62523.0,62522.0,0.307524]
[1721011140522,0.17565722,62523.0,62522.0,0.307524]
[1721011140717,0.31286429,62523.0,62522.0,0.307524]
[1721011140920,0.32686429,62523.0,62522.0,0.307524]
[1721011141350,0.13836599,62523.0,62522.0,0.307524]
[1721011141561,0.3583203,62523.0,62522.0,0.307524]
[1721011141783,0.30696599,62523.0,62522.0,0.307524]
[1721011142168,0.35844349,62523.0,62522.0,0.307524]
[1721011142638,0.35844349,62523.0,62522.0,0.244524]
[1721011143038,0.51789185,62523.0,62522.0,0.244524]
[1721011143190,0.51789185,62523.0,62501.0,0.000913]
[1721011143191,0.5,62502.0,62501.0,0.000913]
[1721011143527,0.5,62502.0,62497.0,0.009163]
[1721011143528,0.5,62500.0,62497.0,0.009163]
[1721011143740,0.05454103,62499.0,62498.0,0.32001]
[1721011143937,0.10306353,62499.0,62498.0,0.32001]
[1721011144141,0.14533212,62499.0,62498.0,0.32001]
[1721011144294,0.15531437,62499.0,62498.0,0.32001]
[1721011144643,0.10306353,62499.0,62498.0,0.32001]
[1721011144975,0.11304534,62499.0,62498.0,0.46181]
[1721011145121,0.00998181,62499.0,62498.0,1.00038963]
[1721011145328,0.87259944,62523.0,62507.0,0.15]
[1721011145329,0.3278304,62509.0,62507.0,0.15]
[1721011145533,0.3278304,62509.0,62508.0,0.83733963]
[1721011145705,0.013,62535.0,62517.0,0.1418]
[1721011145905,0.4863143,62529.0,62523.0,0.08105238]
[1721011146272,0.0518814,62528.0,62524.0,0.31988]
[1721011146406,0.0518814,62527.0,62524.0,0.40688]
[1721011146634,0.41181778,62531.0,62524.0,0.40688]
[1721011146635,0.00997835,62526.0,62525.0,0.61737963]
[1721011146833,0.2858,62548.0,62525.0,0.61737963]
[1721011146834,0.3278304,62542.0,62540.0,0.15]
[1721011147056,0.3278304,62549.0,62543.0,0.23975238]
[1721011147426,0.05166092,62548.0,62544.0,0.31977]
[1721011147601,0.00997323,62547.0,62544.0,0.31977]
[1721011147804,0.5,62553.0,62544.0,0.30677]
[1721011147805,0.00997288,62546.0,62544.0,0.30677]
[1721011148039,0.00997288,62545.0,62544.0,0.49377]
[1721011148259,0.014,62549.0,62548.0,0.1]
[1721011148461,0.02397244,62549.0,62548.0,0.43275]
[1721011148864,0.02397244,62549.0,62548.0,0.33275]
[1721011149387,0.02397244,62549.0,62548.0,0.43275]
[1721011149692,0.02397244,62549.0,62548.0,0.33275]
[1721011150410,0.00997244,62549.0,62548.0,0.33275]
[1721011150644,0.077975,62562.0,62558.0,0.087]
[1721011150645,0.064975,62562.0,62558.0,0.087]
[1721011150874,0.064975,62562.0,62552.0,0.183]
[1721011150875,0.53002902,62561.0,62559.0,0.3979]
[1721011151087,0.00997126,62560.0,62559.0,0.3979]
[1721011152155,0.10997126,62560.0,62559.0,0.3979]
[1721011152361,0.00997126,62560.0,62559.0,1.02347963]
[1721011152534,0.00083,62562.0,62560.0,0.38857963]
[1721011152781,0.00083,62562.0,62561.0,0.51969]
[1721011152947,0.01080026,62562.0,62561.0,0.33269]
[1721011153166,0.01080026,62562.0,62561.0,0.43269]
[1721011153354,0.01080026,62562.0,62561.0,0.33269]
[1721011154156,0.01080089,62562.0,62561.0,0.33269]
[1721011154583,0.11107721,62562.0,62561.0,0.33269]
[1721011154787,0.21107721,62562.0,62561.0,0.33369]
[1721011154984,0.11080118,62562.0,62561.0,0.33269]
[1721011156419,0.11080118,62562.0,62561.0,0.33369]
[1721011157204,0.01080158,62562.0,62561.0,0.33269]
[1721011158090,0.01080158,62562.0,62561.0,0.33369]
[1721011158840,0.01080158,62562.0,62561.0,0.42069]
[1721011159039,0.01080158,62562.0,62561.0,0.56779]
[1721011159569,0.01080158,62562.0,62561.0,0.56679]
[1721011159771,0.01080158,62562.0,62561.0,0.56779]
[1721011160052,0.0130212,62576.0,62561.0,0.56779]
[1721011160053,0.02510853,62582.0,62572.0,0.087]
[1721011160184,0.3278304,62582.0,62580.0,0.08105238]
[1721011160388,0.00835,62591.0,62584.0,0.087]
[1721011160588,0.00835,62591.0,62585.0,0.39497]
[1721011160789,0.5,62589.0,62585.0,0.39497]
[1721011161232,0.114954,62588.0,62585.0,0.33257]
[1721011162410,0.1,62587.0,62585.0,0.33257]
[1721011162760,0.11675178,62587.0,62585.0,0.33257]
[1721011162961,0.11675178,62587.0,62585.0,0.33357]
[1721011163109,0.01606353,62586.0,62585.0,0.332078]
[1721011163314,0.05482887,62586.0,62585.0,0.332078]
[1721011163514,0.05430541,62586.0,62585.0,0.332078]
[1721011164078,0.54130541,62586.0,62585.0,0.332078]
[1721011164214,0.6,62586.0,62585.0,0.332078]
[1721011164413,0.6,62586.0,62585.0,0.331078]
[1721011164414,0.75244751,62586.0,62585.0,0.331078]
[1721011164619,0.76544751,62586.0,62585.0,0.332078]
[1721011164820,0.76544751,62586.0,62585.0,0.28502539]
[1721011165020,0.75244751,62586.0,62585.0,0.28502539]
[1721011165278,0.63810447,62586.0,62585.0,0.28502539]
[1721011165481,0.1,62586.0,62585.0,0.28502539]
[1721011165650,0.01675178,62587.0,62585.0,0.28502539]
[1721011166057,0.01675178,62587.0,62585.0,0.28402539]
[1721011166277,0.506,62586.0,62585.0,0.28502539]
[1721011166494,0.606,62586.0,62585.0,0.28502539]
[1721011166730,0.6,62586.0,62585.0,0.28402539]
[1721011166857,0.6,62586.0,62585.0,0.28502539]
[1721011167065,0.6,62586.0,62585.0,0.28402539]
[1721011167066,0.63050483,62586.0,62585.0,0.28402539]
[1721011167272,0.6,62586.0,62585.0,0.28402539]
[1721011167632,0.64389533,62586.0,62585.0,0.28502539]
[1721011167960,0.605,62586.0,62585.0,0.28502539]
[1721011168160,0.005,62586.0,62585.0,0.45442793]
[1721011168365,0.005,62586.0,62585.0,0.69142793]
[1721011168614,0.005,62586.0,62585.0,1.1325574]
[1721011168829,0.005,62586.0,62585.0,0.84397777]
[1721011168986,0.005,62586.0,62585.0,0.84297777]
[1721011169188,0.064104,62589.0,62588.0,0.087]
[1721011169373,0.00835,62591.0,62590.0,0.073]
[1721011169591,0.072453,62591.0,62590.0,0.45408]
[1721011170017,0.072453,62591.0,62590.0,0.45308]
[1721011170686,0.072453,62591.0,62590.0,0.38408]
[1721011171256,0.08548333,62591.0,62590.0,0.38408]
[1721011172947,0.0824198,62591.0,62590.0,0.38708]
[1721011173152,0.08242042,62591.0,62590.0,0.38108]
[1721011173322,0.08548395,62591.0,62590.0,0.38108]
[1721011173524,0.08948395,62591.0,62590.0,0.38108]
[1721011173927,0.08948395,62591.0,62590.0,0.38208]
[1721011173928,0.09348395,62591.0,62590.0,0.38208]
[1721011174691,0.19348395,62591.0,62590.0,0.38208]
[1721011174833,0.19042042,62591.0,62590.0,0.38208]
[1721011175373,0.22867506,62591.0,62590.0,0.38208]
[1721011175578,0.19042042,62591.0,62590.0,0.38208]
[1721011175772,0.08642042,62591.0,62590.0,0.38208]
[1721011175974,0.12067655,62591.0,62590.0,0.38108]
[1721011176177,0.22067655,62591.0,62590.0,0.38208]
[1721011176393,0.22067264,62591.0,62590.0,0.38208]
[1721011176719,0.21070561,62591.0,62590.0,0.38108]
[1721011176939,0.21070561,62591.0,62590.0,0.38208]
[1721011177444,0.28177617,62591.0,62590.0,0.38208]
[1721011177601,0.28177617,62591.0,62590.0,0.38108]
[1721011177797,0.21070561,62591.0,62590.0,0.38208]
[1721011178521,0.2206737,62591.0,62590.0,0.38208]
[1721011178864,0.23343319,62591.0,62590.0,0.38208]
[1721011179562,0.40203319,62591.0,62590.0,0.38208]
[1721011179761,0.55528163,62591.0,62590.0,0.38208]
[1721011179967,0.55512269,62591.0,62590.0,0.38108]
[1721011180383,0.55512269,62591.0,62590.0,0.38208]
[1721011180656,0.55512269,62591.0,62590.0,0.38108]
[1721011180991,0.55512269,62591.0,62590.0,0.38208]
[1721011181209,0.55512269,62591.0,62590.0,0.38108]
[1721011181210,0.72372269,62591.0,62590.0,0.38108]
[1721011181986,0.74047586,62591.0,62590.0,0.38108]
[1721011182190,0.74047586,62591.0,62561.0,0.0765]
[1721011182191,0.5,62563.0,62561.0,0.0765]
[1721011182437,0.0482479,62562.0,62556.0,0.4863143]
[1721011182639,0.5,62550.0,62548.0,0.0661]
[1721011182809,0.0484639,62549.0,62548.0,0.0661]
[1721011182988,0.1484639,62549.0,62548.0,0.31975]
[1721011184026,0.1484639,62549.0,62548.0,0.32975]
[1721011184661,0.14827146,62549.0,62548.0,0.32975]
[1721011185059,0.14827146,62549.0,62548.0,0.31975]
[1721011185670,0.43397146,62549.0,62548.0,0.31975]
[1721011185943,0.39567451,62549.0,62548.0,0.31975]
[1721011186139,0.10997451,62549.0,62548.0,0.31975]
[1721011186362,0.12297451,62549.0,62548.0,0.31975]
[1721011187058,0.60997451,62549.0,62548.0,0.31975]
[1721011187431,0.11697451,62549.0,62548.0,0.38625]
[1721011188101,0.61697451,62549.0,62548.0,0.38625]
[1721011188271,0.65613091,62549.0,62548.0,0.38625]
[1721011188669,0.6461564,62549.0,62548.0,0.38625]
[1721011188811,0.1461564,62549.0,62548.0,0.38625]
[1721011189019,0.1,62549.0,62548.0,0.45825]
[1721011189239,0.1,62549.0,62548.0,0.53930238]
[1721011189435,0.6,62549.0,62548.0,0.31975]
[1721011189636,0.20021988,62549.0,62548.0,0.31975]
[1721011189975,0.60997397,62549.0,62548.0,0.31975]
[1721011190176,0.61697397,62549.0,62548.0,0.31975]
[1721011190800,0.607,62549.0,62548.0,0.31975]
[1721011191083,0.6,62549.0,62548.0,0.31975]
[1721011191279,0.69024591,62549.0,62548.0,0.31975]
[1721011192595,0.63718268,62549.0,62548.0,0.31975]
[1721011192811,0.1,62549.0,62548.0,0.31975]
[1721011193015,0.0715765,62563.0,62551.0,0.1]
[1721011193233,0.16104712,62578.0,62549.0,0.1451]
[1721011193234,0.01274422,62584.0,62583.0,0.072]
[1721011193420,0.4863143,62586.0,62585.0,0.0642]
[1721011193597,0.4863143,62586.0,62585.0,0.53172238]
[1721011193598,0.037173,62586.0,62585.0,0.53172238]
[1721011193800,0.5,62589.0,62585.0,0.53172238]
[1721011193980,0.01674819,62586.0,62585.0,0.53172238]
[1721011194183,0.01674819,62586.0,62585.0,0.52672238]
[1721011195737,0.01774819,62586.0,62585.0,0.52672238]
[1721011196146,0.01774819,62586.0,62585.0,0.59872238]
[1721011196709,0.01774819,62586.0,62585.0,0.83730201]
[1721011196822,0.01774819,62586.0,62585.0,0.74872238]
[1721011198655,0.01774819,62586.0,62585.0,0.67672238]
[1721011198896,0.01774819,62586.0,62585.0,0.31957]
[1721011199132,0.05347606,62586.0,62585.0,0.31957]
[1721011199900,0.05247606,62586.0,62585.0,0.31957]
[1721011200419,0.05347606,62586.0,62585.0,0.31957]
[1721011200627,0.05247606,62586.0,62585.0,0.31957]
[1721011200822,0.05347606,62586.0,62585.0,0.31957]
[1721011201146,0.05259831,62586.0,62585.0,0.31957]
[1721011201658,0.01774819,62586.0,62585.0,0.39157]
[1721011201860,0.01774819,62586.0,62585.0,0.62590201]
[1721011204366,0.01774819,62586.0,62585.0,0.82590201]
[1721011204717,0.01774819,62586.0,62585.0,1.06460201]
[1721011204916,0.00835,62591.0,62590.0,0.81377963]
[1721011205118,0.00835,62591.0,62590.0,1.13331963]
[1721011205437,0.00835,62591.0,62590.0,1.27711163]
[1721011205809,0.09531342,62595.0,62594.0,0.91456263]
[1721011205984,0.11914177,62597.0,62596.0,1.26671663]
[1721011206189,0.11914177,62597.0,62596.0,1.87192663]
[1721011206666,0.002,62609.0,62608.0,0.059]
[1721011206857,0.002,62609.0,62608.0,0.64045]
[1721011207060,0.002,62609.0,62608.0,0.98832963]
[1721011207305,0.002,62609.0,62608.0,0.78045]
[1721011207514,0.002,62609.0,62608.0,1.06802963]
[1721011208657,0.002,62609.0,62608.0,0.78045]
[1721011208658,0.003,62609.0,62608.0,0.78045]
[1721011209063,0.002,62609.0,62608.0,0.86802963]
[1721011209350,0.003,62609.0,62608.0,0.86802963]
[1721011209522,0.003,62609.0,62608.0,1.06802963]
[1721011209661,0.003,62609.0,62608.0,1.29662963]
[1721011210057,0.003,62609.0,62608.0,1.44038063]
[1721011210252,0.003,62609.0,62608.0,1.29662963]
[1721011211232,0.00962,62623.0,62611.0,0.83092363]
[1721011211430,0.00962,62623.0,62622.0,0.60757963]
[1721011211633,0.00962,62623.0,62622.0,1.13931201]
[1721011211946,0.01341353,62649.0,62648.0,0.071]
[1721011212124,0.01341353,62649.0,62648.0,0.39024]
[1721011212328,0.01341353,62649.0,62648.0,0.31824]
[1721011212505,0.07746453,62649.0,62648.0,0.31824]
[1721011212705,0.075401,62649.0,62648.0,0.31824]
[1721011212915,0.212501,62649.0,62648.0,0.31724]
[1721011213352,0.075401,62649.0,62648.0,0.38824]
[1721011213556,0.074401,62649.0,62648.0,0.38824]
[1721011214217,0.01035,62649.0,62648.0,0.38824]
[1721011214493,0.00535,62649.0,62648.0,0.77581963]
[1721011214743,0.064043,62653.0,62652.0,0.15857963]
[1721011214956,0.09618,62654.0,62653.0,0.22]
[1721011215190,0.09618,62654.0,62653.0,0.54122]
[1721011215381,0.09618,62654.0,62653.0,0.93099155]
[1721011215966,0.01673199,62657.0,62656.0,0.45657963]
[1721011216168,0.01673199,62657.0,62656.0,0.77777963]
[1721011216713,0.01673199,62657.0,62656.0,0.4892]
[1721011217038,0.01673199,62657.0,62656.0,0.57677963]
[1721011217242,0.01773199,62657.0,62656.0,0.78177963]
[1721011217905,0.01773199,62657.0,62656.0,0.95037963]
[1721011218286,0.01773199,62657.0,62656.0,1.01037963]
[1721011218500,0.01673199,62657.0,62656.0,0.94537963]
[1721011218703,0.00834,62660.0,62659.0,0.168]
[1721011219114,0.00834,62660.0,62659.0,0.48819]
[1721011219324,0.002,62669.0,62659.0,0.48819]
[1721011219325,0.00834,62672.0,62671.0,0.226]
[1721011219526,0.00306353,62699.0,62687.0,0.83217963]
[1721011219527,0.063999,62698.0,62687.0,0.83217963]
[1721011219719,0.063999,62698.0,62687.0,0.63605]
[1721011219924,0.063999,62698.0,62687.0,0.92362963]
[1721011220128,0.5,62708.0,62687.0,0.92362963]
[1721011220296,0.003,62709.0,62687.0,0.92362963]
[1721011220297,0.002,62709.0,62687.0,0.73195]
[1721011220513,0.006399,62702.0,62699.0,0.166]
[1721011220708,0.5,62723.0,62720.0,0.068]
[1721011220907,0.501,62723.0,62721.0,0.38887]
[1721011221135,0.501,62723.0,62721.0,0.32087]
[1721011221136,0.2867,62722.0,62721.0,0.32087]
[1721011221254,0.2867,62722.0,62721.0,0.38887]
[1721011221451,0.494783,62722.0,62721.0,0.32087]
[1721011221836,0.494783,62722.0,62687.0,0.148]
[1721011221837,0.001,62707.0,62702.0,0.068]
[1721011222131,0.5,62714.0,62708.0,0.068]
[1721011222132,0.2867,62712.0,62708.0,0.068]
[1721011222338,0.206083,62722.0,62720.0,0.068]
[1721011222540,0.206083,62722.0,62712.0,0.068]
[1721011222541,0.001,62714.0,62712.0,0.068]
[1721011222762,0.001,62711.0,62707.0,0.068]
[1721011222992,0.08405238,62714.0,62713.0,0.31891]
[1721011223141,0.00606353,62714.0,62713.0,0.282816]
[1721011223747,0.47809393,62714.0,62713.0,0.282816]
[1721011223971,0.97709393,62714.0,62713.0,0.282816]
[1721011224174,0.101,62714.0,62713.0,0.282816]
[1721011225214,0.001,62714.0,62713.0,0.282816]
[1721011225344,0.001,62714.0,62713.0,0.283816]
[1721011225748,0.0033944,62714.0,62713.0,0.283816]
[1721011225953,0.001,62714.0,62713.0,0.283816]
[1721011226453,0.001,62701.0,62700.0,0.9936]
[1721011226771,0.001,62701.0,62700.0,1.31258]
[1721011228801,0.501,62701.0,62700.0,1.31258]
[1721011228945,0.601,62701.0,62700.0,1.31258]
[1721011229175,0.606,62701.0,62700.0,1.31258]
[1721011229597,0.101,62701.0,62700.0,1.31258]
[1721011229822,0.106,62701.0,62700.0,1.31258]
[1721011231255,0.001,62701.0,62700.0,1.31258]
[1721011231506,0.006,62701.0,62700.0,1.31258]
[1721011231710,0.001,62701.0,62700.0,1.31258]
[1721011232120,0.006,62701.0,62700.0,1.31258]
[1721011232603,0.011,62701.0,62700.0,1.31258]
[1721011233608,0.063983,62722.0,62709.0,0.068]
[1721011233859,0.063983,62722.0,62701.0,0.1481]
[1721011233860,0.3918134,62722.0,62711.0,0.068]
[1721011234096,0.3918134,62722.0,62714.0,0.068]
[1721011234097,0.0607,62721.0,62714.0,0.068]
[1721011234351,0.0607,62721.0,62715.0,0.3189]
[1721011234610,0.0607,62721.0,62715.0,0.3159]
[1721011234853,0.3367,62718.0,62715.0,0.260151]
[1721011235096,0.3367,62718.0,62715.0,0.222985]
[1721011235097,0.3387,62718.0,62715.0,0.222985]
[1721011235366,0.3387,62718.0,62715.0,0.20058534]
[1721011235367,0.034,62716.0,62715.0,0.20058534]
[1721011235667,0.26224913,62716.0,62715.0,0.20058534]
[1721011235898,0.26224913,62716.0,62715.0,0.20458534]
[1721011236119,0.33116721,62716.0,62715.0,0.18171534]
[1721011236357,0.299,62716.0,62715.0,0.13576335]
[1721011236600,0.299,62716.0,62715.0,0.06916335]
[1721011236601,0.80816912,62716.0,62715.0,0.06916335]
[1721011236835,0.80816912,62716.0,62701.0,0.4863143]
[1721011236836,0.02083665,62702.0,62701.0,0.4863143]
[1721011237071,0.34866705,62702.0,62701.0,0.31897]
[1721011237313,0.44866705,62702.0,62701.0,0.31897]
[1721011237803,0.62282577,62702.0,62701.0,0.31897]
[1721011238040,0.80617835,62702.0,62701.0,0.31897]
[1721011238307,0.80617835,62702.0,62701.0,0.32197]
[1721011238545,0.65682577,62702.0,62701.0,0.31897]
[1721011238996,0.66382577,62702.0,62701.0,0.31997]
[1721011239240,0.8219028,62702.0,62701.0,0.31897]
[1721011239448,0.81974408,62702.0,62701.0,0.31997]
[1721011239647,0.86253637,62702.0,62701.0,0.31997]
[1721011240288,0.86253637,62702.0,62701.0,0.17007]
[1721011240475,0.8655999,62702.0,62701.0,0.17007]
[1721011240596,1.18452287,62702.0,62701.0,0.17007]
[1721011240814,1.18452287,62702.0,62701.0,0.16907]
[1721011240815,1.16745934,62702.0,62701.0,0.16907]
[1721011241044,1.16745934,62702.0,62701.0,0.16568236]
[1721011241045,1.18145934,62702.0,62701.0,0.16568236]
[1721011241249,1.16745934,62702.0,62701.0,0.16568236]
[1721011241624,1.18145934,62702.0,62701.0,0.16568236]
[1721011242030,1.16745934,62702.0,62701.0,0.16568236]
[1721011242254,0.85362894,62702.0,62701.0,0.16568236]
[1721011242578,0.83962894,62702.0,62701.0,0.16568236]
[1721011242773,0.70562894,62702.0,62701.0,0.16568236]
[1721011243088,0.06362894,62702.0,62701.0,0.16568236]
[1721011243482,0.09446183,62702.0,62701.0,0.16568236]
[1721011243676,0.05422894,62702.0,62701.0,0.16568236]
[1721011244621,0.04434001,62712.0,62701.0,0.79424904]
[1721011244832,0.01015689,62727.0,62721.0,0.068]
[1721011244988,0.002,62729.0,62721.0,0.54016]
[1721011244989,0.09011733,62722.0,62721.0,0.54016]
[1721011245193,0.063983,62722.0,62721.0,0.54016]
[1721011245440,0.063983,62722.0,62721.0,0.52616]
[1721011246217,0.064983,62722.0,62721.0,0.52616]
[1721011246703,0.001,62722.0,62721.0,0.52616]
[1721011247099,0.064976,62722.0,62721.0,0.47216]
[1721011247507,0.09079156,62722.0,62721.0,0.47216]
[1721011247701,0.09279156,62722.0,62721.0,0.47216]
[1721011247946,0.24485509,62722.0,62721.0,0.48316]
[1721011248149,0.24385509,62722.0,62721.0,0.47216]
[1721011248305,0.39765599,62722.0,62721.0,0.47216]
[1721011248546,0.39865599,62722.0,62721.0,0.48416]
[1721011248742,0.39865599,62722.0,62721.0,0.40919096]
[1721011248970,0.56776499,62722.0,62721.0,0.12510382]
[1721011249143,0.502,62701.0,62700.0,0.86692039]
[1721011249358,1.29385496,62701.0,62700.0,1.18590039]
[1721011249776,1.47605496,62701.0,62700.0,1.18590039]
[1721011249993,1.62386046,62701.0,62700.0,1.18590039]
[1721011250598,1.64686046,62701.0,62700.0,1.18590039]
[1721011250776,1.49905496,62701.0,62700.0,1.18590039]
[1721011251012,1.47605496,62701.0,62700.0,1.18590039]
[1721011251599,1.48005496,62701.0,62700.0,1.18590039]
[1721011251799,1.52398296,62701.0,62700.0,1.18590039]
[1721011252121,1.54070738,62701.0,62700.0,1.16917598]
[1721011252275,1.69330568,62701.0,62700.0,1.16917598]
[1721011252475,1.52398296,62701.0,62700.0,1.16917598]
[1721011252721,1.18728296,62701.0,62700.0,1.16917598]
[1721011252923,1.22057567,62701.0,62700.0,1.16917598]
[1721011253300,1.23729999,62701.0,62700.0,1.16917598]
[1721011253937,1.19337199,62701.0,62700.0,1.16917598]
[1721011254107,2.05097199,62701.0,62700.0,1.16917598]
[1721011254561,1.72314159,62701.0,62700.0,1.16917598]
[1721011254842,1.56554159,62701.0,62700.0,1.16917598]
[1721011255432,1.56687127,62701.0,62700.0,1.16917598]
[1721011255809,1.61079927,62701.0,62700.0,1.13097598]
[1721011256018,1.61079927,62701.0,62700.0,1.11499541]
[1721011256019,1.58693673,62701.0,62700.0,1.11499541]
[1721011256247,1.79505464,62701.0,62700.0,1.11499541]
[1721011256472,1.74991718,62701.0,62700.0,1.11499541]
[1721011256638,1.97422654,62701.0,62700.0,1.11499541]
[1721011256834,1.87917055,62701.0,62700.0,1.11499541]
[1721011257041,1.87917055,62701.0,62700.0,1.09443541]
[1721011257283,1.87610702,62701.0,62700.0,1.09443541]
[1721011257494,0.5,62675.0,62671.0,0.054]
[1721011257704,0.02865424,62674.0,62671.0,0.054]
[1721011257932,0.02865424,62673.0,62672.0,0.31912]
[1721011258343,0.1243027,62673.0,62672.0,0.31912]
[1721011258548,0.2953027,62673.0,62672.0,0.31912]
[1721011258745,0.33939023,62673.0,62672.0,0.31912]
[1721011259234,0.43466566,62673.0,62672.0,0.31912]
[1721011259430,0.33939304,62673.0,62672.0,0.31912]
[1721011259856,1.03939304,62673.0,62672.0,0.27016]
[1721011260069,1.03939304,62673.0,62672.0,0.0690742]
[1721011260070,1.3539655,62673.0,62672.0,0.0690742]
[1721011260276,1.3539655,62673.0,62640.0,0.0776]
[1721011260277,0.5,62641.0,62640.0,0.0776]
[1721011260450,0.5,62641.0,62640.0,0.39688]
[1721011260451,0.85543752,62641.0,62640.0,0.39688]
[1721011260630,0.95543752,62641.0,62640.0,0.39688]
[1721011260827,0.45543752,62641.0,62640.0,0.88745963]
[1721011261036,0.1,62641.0,62640.0,0.98545963]
[1721011261445,0.1,62641.0,62640.0,0.78545963]
[1721011261666,0.1,62647.0,62643.0,0.054]
[1721011261868,0.02750301,62646.0,62644.0,0.31926]
[1721011262071,0.1,62646.0,62645.0,0.054]
[1721011262233,0.1,62646.0,62645.0,0.66183963]
[1721011262442,0.1,62646.0,62645.0,0.37226]
[1721011262841,0.1,62646.0,62645.0,0.46083963]
[1721011263246,0.1,62646.0,62645.0,0.37226]
[1721011263917,0.1,62646.0,62645.0,0.46083963]
[1721011264115,0.1,62646.0,62645.0,0.66083963]
[1721011264666,0.1,62646.0,62645.0,0.37226]
[1721011264892,0.1,62646.0,62645.0,0.31926]
[1721011265423,0.12697923,62646.0,62645.0,0.31926]
[1721011265622,0.1,62646.0,62645.0,0.31926]
[1721011266235,0.16916831,62646.0,62645.0,0.31926]
[1721011266438,0.17223184,62646.0,62645.0,0.31926]
[1721011266635,0.17423184,62646.0,62645.0,0.31926]
[1721011266837,0.14784657,62646.0,62645.0,0.31926]
[1721011267039,0.17425537,62646.0,62645.0,0.31926]
[1721011267311,0.26976642,62646.0,62645.0,0.31926]
[1721011267620,0.17360838,62646.0,62645.0,0.31926]
[1721011267755,0.07360838,62646.0,62645.0,0.31926]
[1721011268176,0.12791985,62646.0,62645.0,0.31926]
[1721011268377,0.13282534,62646.0,62645.0,0.31926]
[1721011268598,0.64956123,62646.0,62645.0,0.31926]
[1721011268979,0.64556123,62646.0,62645.0,0.31926]
[1721011269178,0.69256123,62646.0,62645.0,0.31926]
[1721011269403,0.80543626,62646.0,62645.0,0.29952]
[1721011270055,0.82843626,62646.0,62645.0,0.29952]
[1721011270504,0.83149979,62646.0,62645.0,0.29952]
[1721011270729,0.8313079,62646.0,62645.0,0.29952]
[1721011270929,0.81360044,62646.0,62645.0,0.29952]
[1721011271077,0.22872541,62646.0,62645.0,0.29952]
[1721011271293,0.72872541,62646.0,62645.0,0.29952]
[1721011271467,0.71472541,62646.0,62645.0,0.29952]
[1721011271671,0.72872541,62646.0,62645.0,0.29952]
[1721011271880,0.8414743,62646.0,62645.0,0.29952]
[1721011272075,0.20572541,62646.0,62645.0,0.29952]
[1721011272277,0.70572541,62646.0,62645.0,0.29952]
[1721011272477,0.20572541,62646.0,62645.0,0.29952]
[1721011272676,0.70572541,62646.0,62645.0,0.29952]
[1721011272876,0.81586795,62646.0,62645.0,0.29952]
[1721011273084,0.65872541,62646.0,62645.0,0.29952]
[1721011273287,0.66934451,62646.0,62645.0,0.29952]